Cogmind - Beta 15 --- EXPLORER MODE // 2025.10.01 @ 21:15:01 Player: Akogishi Result: Destroyed by as-11240 with Assembled Maul Performance ------------- Evolutions (0) 0 Regions Visited (0) 0 Robots Destroyed (0) 0 Value Destroyed (0) 0 Prototype IDs (0) 0 Alien Tech Used (0) 0 Bonus (0) 0 TOTAL SCORE: 0 Bonus ------- None Cogmind --------- Core Integrity 0/250 Matter 285/300 Energy 250/250 System Corruption 0% Temperature Cool (0) Movement Core (300) Ox5 Location -11/Scrapyard Parts ------- > --- POWER (1) -------- Ion Engine > --- PROPULSION (2) --- Aluminum Leg > --- UTILITY (2) ------ Medium Storage Unit > --- WEAPON (2) ------- Small Laser Small Laser > --- INVENTORY (10) --- Light Ion Engine Light Treads Aluminum Leg Signal Interpreter Targeting Computer Light Armor Plating Assault Rifle Peak State ------------ > --- POWER ------------ Ion Engine > --- PROPULSION ------- Aluminum Leg Aluminum Leg > --- UTILITY ---------- Medium Storage Unit Light Armor Plating > --- WEAPON ----------- Small Laser Assault Rifle > --- INVENTORY -------- Light Ion Engine [Rating: 7] Favorites ----------- Power Ion Engine Engine Ion Engine Propulsion Aluminum Leg Treads Light Treads Leg Aluminum Leg Utility Medium Storage Unit Storage Medium Storage Unit Protection Light Armor Plating Weapon Small Laser Energy Gun Small Laser Ballistic Gun Assault Rifle Build | -11 ------- Run | Yrd Slots Evolved . | . Power . | . Propulsion . | . Utility . | . Weapon . | . Parts Attached 10 | 10 Power 2 | 2 Engine 2 | 2 Core . | . Reactor . | . Propulsion 3 | 3 Treads 1 | 1 Leg 2 | 2 Wheel . | . Hover . | . Flight . | . Utility 2 | 2 Device . | . Storage 1 | 1 Processor . | . Hackware . | . Protection 1 | 1 Artifact . | . Weapon 3 | 3 Energy Gun 2 | 2 Energy Cannon . | . Ballistic Gun 1 | 1 Ballistic Cannon . | . Launcher . | . Special Weapon . | . Impact Weapon . | . Slashing Weapon . | . Piercing Weapon . | . Special Melee Weapon . | . Unidentified Prototypes . | . Parts Lost 1 | 1 Power . | . Propulsion . | . Utility 1 | 1 Weapon . | . Highest Loss Streak 1 | 1 To Critical Strikes . | . Average Backups 6 | 6 Power . | . Propulsion 1 | 1 Utility 2 | 2 Weapon . | . Tool/Special . | . Unused Backups 4 | 4 Power . | . Propulsion 1 | 1 Utility 3 | 3 Weapon . | . Tool/Special . | . Average Slot Usage (%) . | . Peak Build Rating 7 | 7 Average Rating 6 | 6 On Entrance . | . Naked Turns . | . Heaviest Build 21 | 21 Greatest Support 20 | 20 Greatest Overweight (x) 6 | 6 Average Overweight (x) 1 | 1 Largest Inventory Capacity 10 | 10 Average Capacity 9 | 9 Most Carried 7 | 7 Average Carried 6 | 6 Final Capacity 10 | 10 Final Carried 7 | 7 Class Distribution -------------------- None Dominant Class ---------------- None Resources | -11 ----------- Run | Yrd Matter Collected 276 | 276 Remotely . | . Salvage Created . | . Parts . | . Haulers Intercepted . | . Recyclers Shooed . | . Parts Field Recycled . | . Retrieved Matter . | . Parts Self-Destructed . | . Prevented . | . Kills | -11 ------- Run | Yrd Combat Hostiles Destroyed . | . Classes Destroyed . | . Best Kill Streak . | . Combat Bots Only . | . Max Kills in Single Turn . | . Gunslinging . | . Exploded . | . Melee . | . Uniques/NPCs Destroyed . | . Combat | -11 -------- Run | Yrd Hostile Shots Fired 78 | 78 Missed 17 | 17 Hits 61 | 61 Melee 16 | 16 Projectile 45 | 45 AOE 2 | 2 Critical Strikes 1 | 1 Part Disruptions 5 | 5 Damage Taken 706 | 706 Core 267 | 267 Absorbed by Shields . | . Ignored by Resistances 423 | 423 Core Remaining (%) . | . Volleys Fired 5 | 5 Largest 1 | 1 Hottest 40 | 40 Shots Fired 5 | 5 Gun 5 | 5 Cannon . | . Launcher . | . Special . | . Kinetic . | . Thermal 5 | 5 Explosive . | . Electromagnetic . | . Robot Hit Streak 5 | 5 Robot Miss Streak . | . Penetration Max . | . Secondary Targets . | . Shots Hit Robots 5 | 5 Core Hits . | . Critical Kills . | . Critical Parts Destroyed . | . Critical Strikes . | . Melee Attacks . | . Impact . | . Slashing . | . Piercing . | . Sneak Attacks . | . Combat Hostiles . | . Follow-up Attacks . | . Damage Inflicted 59 | 59 Guns 56 | 56 Cannons . | . Explosions . | . Melee . | . Ramming 3 | 3 Kinetic . | . Thermal 56 | 56 Explosive . | . Electromagnetic . | . Impact . | . Slashing . | . Piercing . | . Highest Corruption . | . Average Corruption . | . Corruption Purged . | . Corruption Blocked . | . Overload Shots . | . Overflow Damage . | . Projectiles . | . Explosions . | . Melee . | . Knockbacks . | . Impact . | . Kinetic . | . Secondary . | . Self-Inflicted Damage . | . Shots . | . Rammed . | . Targets Rammed 1 | 1 Kicked 1 | 1 Crushed . | . Highest Temperature 61 | 61 Average Temperature 22 | 22 Received Heat Transfer 340 | 340 Siege Activations . | . Martial Activations . | . Shielding Activations . | . Robots Disrupted . | . Combat Hostiles . | . Robots Corrupted . | . Combat Hostiles . | . Parts Fried . | . Impact Corruptions . | . Robots Melted . | . Combat Hostiles . | . Parts Melted . | . Heat Transferred 125 | 125 Parts Sabotaged . | . Parts Stolen . | . Parts Stripped . | . Power Chain Reactions . | . Alert | -11 ------- Run | Yrd Maximum Alert Level . | . Low Security (%) 100 | 100 Level 1 . | . Level 2 . | . Level 3 . | . Level 4 . | . Level 5 . | . High Security . | . Max Security . | . Peak Influence . | . Initial . | . Average . | . Influence Increases . | . Influence Decreases . | . Squads Dispatched . | . Investigation . | . Extermination . | . Reinforcement . | . Assault . | . Garrison . | . Intercept . | . Searches Triggered . | . Construction Impeded . | . Haulers Reinforced . | . Active Scanning Responses . | . Cargo Convoy Interrupts . | . Stealth | -11 --------- Run | Yrd Distress Signals . | . Communications Jammed . | . Distress Signals . | . Times Spotted 22 | 22 Peak Tracking Total 15 | 15 Tactical Retreats 1 | 1 Traps | -11 ------- Run | Yrd Traps Triggered . | . Indirectly . | . Trap Hack Attempts . | . Triggered . | . Disarmed . | . Reprogrammed . | . Reused . | . Traps Extracted . | . Installed . | . Triggered . | . Machines | -11 ---------- Run | Yrd Machines Disabled . | . Max in Single Turn . | . Machines Repaired . | . Machines Dismantled . | . Machines Sabotaged . | . Overloaded Fab Kills . | . Hacking | -11 --------- Run | Yrd Machines Accessed . | . Terminals . | . Fabricators . | . Repair Stations . | . Recycling Units . | . Scanalyzers . | . Garrison Access . | . Total Hacks . | . Successful . | . Failed . | . Catastrophic . | . Database Lockouts . | . Manual . | . Terminals . | . Fabricators . | . Repair Stations . | . Recycling Units . | . Scanalyzers . | . Garrison Access . | . Terminal Hacks . | . Fabricator Hacks . | . Repair Station Hacks . | . Recycling Unit Hacks . | . Scanalyzer . | . Garrison Access Hacks . | . Unauthorized Hacks . | . Terminals . | . Fabricators . | . Repair Stations . | . Recycling Units . | . Scanalyzers . | . Garrison Access . | . Data Cores Recovered . | . Used . | . Hacking Detections . | . Full Trace Events . | . Feedback Events . | . Feedback Blocked . | . Robot Schematics Acquired . | . Robots Built . | . Authchips . | . Time . | . Total Robot Build Rating . | . Part Schematics Acquired . | . Parts Built . | . Authchips . | . Time . | . Total Part Build Rating . | . Parts Repaired . | . Time . | . Parts Recycled . | . Recycled Matter . | . Retrieved Matter . | . Retrieved Components . | . Parts Scanalyzed . | . Part Schematics Acquired . | . Parts Damaged . | . Bothacking | -11 ------------ Run | Yrd Used RIF Installer . | . Robots Hacked . | . Non-combat . | . Combat . | . Robot Hacks Applied . | . Relay Couplers Released . | . Fabnet Peak Effective % . | . Robots Rewired . | . Allies Hacked . | . Hacks Repelled . | . Allies | -11 -------- Run | Yrd Total Allies . | . Largest Group . | . Highest-Rated Group . | . Highest-Rated Ally . | . Total Orders . | . Ally Attacks . | . Total Damage . | . Kills . | . Allies Corrupted . | . Allies Melted . | . Intel | -11 ------- Run | Yrd Active Infowar (turns) . | . Robot Analysis Total . | . Derelict Logs Recovered . | . Drone Launches . | . Drone Recoveries . | . Exploration | -11 ------------- Run | Yrd Turns Passed 1522 | 1522 Spaces Moved 388 | 388 Core 18 | 18 Treads 1 | 1 Legs 369 | 369 Wheels . | . Hover . | . Flight . | . Fastest Speed 50 | 50 Average Speed 188 | 188 Slowest Speed 350 | 350 Overloaded Moves . | . Propulsion Burnouts . | . Robots Hopped . | . Potential Cave-ins . | . Cave-ins Triggered . | . Exploration Rate (%) 33 | 33 Regions Visited . Branch Regions . Pre-discovered Areas . | . Known Exits Taken . | . Unknown Exits Taken . | . Scrap Searched . | . Spaces Dug . | . Terrain Destroyed . | . Melee . | . Projectile . | . AOE . | . Terrain Rammed . | . Walls Destroyed . | . Machines Disabled . | . Actions | -11 --------- Run | Yrd Total 1169 | 1169 Wait 759 | 759 Move 388 | 388 Hop . | . Pick Up 6 | 6 Fast Attach 7 | 7 Attach . | . Detach . | . Swap 3 | 3 Drop . | . Fire 5 | 5 Melee . | . Ram . | . Kick 1 | 1 Crush . | . Escape Stasis . | . Rewire . | . Trap . | . Miscellaneous . | . Route ------- -11/Scrapyard (discovered 1 exit: *Mat) History --------- Turn | Location | Event 19 | -11/Scrapyard | Identified exit to Materials 19 | -11/Scrapyard | Discovered exit to Materials (range 15) 1477 | -11/Scrapyard | Assembled infested the area 1514 | -11/Scrapyard | Core integrity fell below 50% 1519 | -11/Scrapyard | Core integrity fell below 20% 1523 | -11/Scrapyard | Destroyed by as-11240 with Assembled Maul Last Messages --------------- [Achievement: Curiosity Killed The Cat] Kicked as-71242 out of the way. Knocked back. Different forms of propulsion may not be used simultaneously, Aluminum Leg automatically deactivated. as-89670 destroyed. as-43720 destroyed. The unstable cave ceiling collapses. D-53 Grenadier destroyed. Lgt. Treads severed. as-20252 destroyed. Lgt. Armor Plating destroyed. as-79867 destroyed. as-37247 destroyed. as-34394 destroyed. as-71242 destroyed. as-56022 destroyed. as-34667 destroyed. as-37207 destroyed. Map ----- +----------------------------------------------------+ | | | | | | | ?????????????????????????????????????????????????? | | ?????????????????????????????????????????????????? | | ?????????????????????????????????????????????????? | | ?????????????????????????????????????????????????? | | ?????????????????????????????????????????????????? | | ?????????????????????????????????????????????????? | | ?????????????????????????????????????????????????? | | ?????????????????????????????????????????????????? | | ?????????????????????????? ??????????????????????? | | ?????????????????????????? ???????????????????? | | ?????????????????????????? " ??????????????????? | | ?????????????????????????? ???????????????????? | | ?????????????????????????? ????????????????????? | | ????????????????########## ?????????????????????? | | ????????????????# #!##????????????????????? | | ????????????????# #% ###??????????????????? | | ????????????????# ##?????????????????? | | ????????????????# %a % #?????????????????? | | ????????????????# % #??????????????????? | | ????????????????# a a ##??????????????????? | | ????????????????# % ##??????????????????? | | ????????????????# aaa #??????????????????? | | ????????????????## = a@%= #???????????????????? | | ?????????????????## = #???????????????????? | | ??????????????????### #???????????????????? | | ????????????????????##### d ##???????????????????? | | ????????????????????????## #????????????????????? | | ??????######????????????## ##???????????????????? | | ??????# ############## #???????????????????? | | ??????# %= #???????????????????? | | ??????# ! #????????????? | | ??????# ############## % # ######????????????? | | ????#### #####??????????## ### #?????????????????? | | ????# #????######## #####?????????????????? | | ????# ###### #?????????????????? | | ????# # # #?????????????????? | | ????# # #?????????????????? | | ????# # #?????????????????? | | ????# # # #?????????????????? | | ????# ## ###############??##########?????? | | ????# ## # #??????# ##????? | | ????# ## # ######## #????? | | ????########### # # #????? | | ??????????????# # # # #????? | | ??????????????# ########### # ###????? | | ???????????#### ####??????# # ###??????? | | ########???# #??????# # ##????????? | +----------------------------------------------------+ Best States ------------- Heat Dissipation 25 Energy Generation 10 Energy Capacity 250 Matter Stores 300 Matter Capacity 300 Sight Range 16 Terrain Scan Density 10 Armor Coverage 150 Resistance: KI 35 Resistance: TH 35 Resistance: EX 35 Resistance: EM 35 Resistance: I 35 Resistance: S 35 Resistance: P 35 Evasion (%) 45 Recoil Reduction 1 Offensive Hacking 20 Item Schematics ----------------- None Robot Schematics ------------------ None Fabricated ------------ Nothing Repaired ---------- Nothing Alien Tech Used ----------------- None Achievements -------------- Curiosity Killed The Cat Challenges ------------ None Game ------ Seed XenonPhysicsKatana Manual? 0 Play Time 00:21:42 Cumulative 5.7 hours Start 2025.10.01 @ 21:02:43 End 2025.10.01 @ 21:15:01 Sessions 0 Manual Loads 0 Difficulty Explorer Special Mode None Game No. 5 Rogue 0 Adventurer 0 Explorer 5 Win Type - Total 0 Types 0/0/0/0/0/0/0/0/0/0 Lore% 1 Gallery% 12 Achievement% 10 Wizard Run 0 Options --------- Layout 1 ASCII 0 Keyboard 0 Movement Numpad Keybinds 0 Fullscreen 1 Font 24/Smallcaps Map View 50x35 Zoom Use 0% Tactical HUD 0 Map Filters NONE Filters NONE Steam 1 RUN: a844120e-572f-4bd0-9e9d-7aeed6d5a078